bitfinex/quotes_ETHUSD_20240821
["timestamp","ask_amount","ask_price","bid_price","bid_amount"]
[1724265029254,2.4774,2640.9,2640.8,3.78673]
[1724265029447,9.77683967,2641.3,2641.1,3.78625]
[1724265029647,2.20368397,2641.2,2641.1,3.78625]
[1724265029899,9.77683967,2641.3,2641.1,3.78625]
[1724265030047,9.77683967,2641.3,2640.9,3.78645]
[1724265030244,9.77683967,2641.3,2640.6,3.78696]
[1724265030245,9.77683967,2641.3,2641.2,3.78615]
[1724265030645,2.2945,2641.7,2640.8,3.7867]
[1724265030868,2.4319,2642.2,2641.9,3.78502]
[1724265031082,2.4319,2642.2,2641.7,3.78541]
[1724265031298,2.4319,2642.2,2641.5,3.78572]
[1724265031453,2.4319,2642.2,2641.5,3.78561]
[1724265031653,2.4319,2642.2,2641.3,3.78596]
[1724265031875,5.144,2642.4,2641.3,3.78589]
[1724265031876,2.4319,2641.9,2641.3,3.78589]
[1724265032076,2.4319,2641.9,2641.5,3.78563]
[1724265032677,2.4319,2641.9,2641.5,3.78562]
[1724265033111,2.4319,2641.9,2641.5,3.78567]
[1724265033735,2.4319,2641.9,2641.3,3.78596]
[1724265033909,0.24319,2641.8,2641.3,3.78596]
[1724265034075,0.24319,2641.8,2641.3,3.78592]
[1724265034270,0.24319,2641.8,2641.3,3.78588]
[1724265034523,2.4319,2641.9,2641.6,3.78557]
[1724265034743,2.4319,2641.9,2641.7,3.78543]
[1724265035815,2.4319,2641.9,2641.6,7.57104]
[1724265035982,2.4319,2641.9,2641.4,7.57152]
[1724265036185,2.4319,2641.9,2641.4,3.78572]
[1724265036410,0.24319,2641.8,2641.4,3.78572]
[1724265036615,0.24319,2641.8,2641.2,3.78608]
[1724265036845,0.24319,2641.8,2641.4,3.78577]
[1724265037323,0.24319,2641.8,2641.6,3.78549]
[1724265037503,2.4319,2641.9,2641.6,3.78549]
[1724265037928,2.4319,2641.9,2641.7,3.78541]
[1724265038129,2.4319,2641.9,2641.6,3.78549]
[1724265038337,2.4319,2641.9,2641.8,3.78529]
[1724265038580,2.4319,2641.9,2641.8,7.57058]
[1724265038732,9.75553967,2642.3,2641.9,3.7851]
[1724265038930,2.3167,2642.3,2642.2,3.78472]
[1724265039155,19.69883967,2642.9,2642.2,3.78472]
[1724265039366,2.80795297,2642.8,2642.3,3.78449]
[1724265039590,2.80795297,2642.8,2642.1,3.78478]
[1724265039591,2.3167,2642.8,2642.1,3.78478]
[1724265039885,2.3167,2642.8,2642.1,7.56952]
[1724265040044,0.23167,2642.7,2642.4,3.78443]
[1724265040247,0.23167,2642.7,2641.8,3.78525]
[1724265040442,0.23167,2642.7,2642.2,3.78462]
[1724265040780,2.252,2642.6,2642.1,3.78484]
[1724265041247,2.252,2642.6,2642.0,3.78492]
[1724265041449,2.3922,2642.4,2641.8,3.78522]
[1724265042134,2.3922,2642.4,2641.6,3.78549]
[1724265042135,2.3922,2642.3,2641.6,3.78546]
[1724265042329,3.78475,2642.2,2641.6,3.78546]
[1724265042530,0.617695,2642.1,2641.6,3.78546]
[1724265042776,2.3922,2642.3,2641.6,3.78546]
[1724265043073,2.3922,2642.3,2641.6,7.57096]
[1724265043074,6.17687,2642.3,2641.6,7.57096]
[1724265043283,2.3902,2642.2,2641.6,3.78546]
[1724265043435,6.17493,2642.2,2641.6,3.78546]
[1724265043983,2.3902,2642.2,2641.8,7.57042]
[1724265044131,2.62922,2642.2,2641.8,3.78521]
[1724265044350,2.62922,2642.2,2641.6,3.78546]
[1724265044534,2.62922,2642.2,2641.4,3.78578]
[1724265044742,2.4067,2642.1,2641.5,3.78571]
[1724265044938,2.479622,2642.1,2641.6,3.78557]
[1724265045165,2.479622,2642.1,2641.6,7.57107]
[1724265045370,2.479622,2642.1,2641.6,7.571]
[1724265045565,2.479622,2642.1,2641.7,3.78542]
[1724265045782,2.479622,2642.1,2641.6,3.7855]
[1724265045783,2.479622,2642.1,2641.8,3.78529]
[1724265046357,2.479622,2642.1,2641.7,3.7854]
[1724265046681,2.479622,2642.1,2641.6,3.78545]
[1724265046836,0.2718642,2642.0,2641.6,3.78545]
[1724265047068,2.2167,2642.1,2641.4,3.78587]
[1724265047248,2.2167,2642.1,2642.0,3.78501]
[1724265047480,2.2167,2642.1,2641.8,3.78529]
[1724265047481,2.2167,2642.1,2641.8,3.78522]
[1724265047789,2.2167,2642.1,2642.0,3.78501]
[1724265048111,2.2167,2642.1,2641.8,3.78516]
[1724265048470,2.2167,2642.1,2641.6,7.57094]
[1724265048799,2.816838,2642.1,2641.6,3.78545]
[1724265049099,2.816838,2642.1,2641.6,7.57093]
[1724265049449,2.2167,2642.1,2641.6,3.78551]
[1724265049698,2.2167,2642.1,2641.7,3.78534]
[1724265049906,2.2167,2642.1,2641.6,3.78556]
[1724265050274,2.2167,2642.1,2641.3,3.78593]
[1724265050456,2.2977,2641.8,2641.3,3.78593]
[1724265050656,2.2977,2641.8,2641.1,3.7862]
[1724265050657,6.08308,2641.8,2641.1,3.78618]
[1724265050883,6.08308,2641.8,2640.9,3.0]
[1724265050884,2.2977,2641.8,2641.3,3.78587]
[1724265051903,3.78569,2641.6,2640.9,3.78645]
[1724265052117,2.628569,2641.5,2640.9,3.78645]
[1724265052423,2.25,2641.5,2640.9,3.78645]
[1724265052760,6.03573,2641.5,2640.9,3.78645]
[1724265053108,6.03573,2641.5,2640.7,3.78673]
[1724265053341,2.25,2641.2,2640.7,3.78673]
[1724265053612,2.25,2641.2,2640.8,3.78665]
[1724265053914,2.25,2641.2,2641.0,3.78643]
[1724265054400,2.25,2641.2,2641.0,3.78635]
[1724265054706,2.475,2641.2,2640.8,3.78659]
[1724265055004,2.25,2641.2,2640.8,3.78659]
[1724265055160,2.25,2641.2,2641.0,3.78633]
[1724265055508,6.78552,2641.7,2641.3,3.78588]
[1724265055509,2.3368,2641.5,2641.3,3.78588]
[1724265055860,2.3368,2641.5,2640.7,3.78677]
[1724265056209,0.23368,2641.4,2640.9,3.78655]
[1724265056583,0.23368,2641.4,2640.9,7.57306]
[1724265056764,0.23368,2641.4,2640.9,3.7865]
[1724265056954,0.23368,2641.4,2640.9,7.57301]
[1724265057702,0.23368,2641.4,2640.9,3.7865]
[1724265057909,4.01956,2641.4,2640.7,3.78679]
[1724265058061,2.3912,2641.3,2640.7,3.78677]
[1724265058255,2.3912,2641.3,2640.9,3.78657]
[1724265058507,2.3912,2641.3,2641.0,3.78643]
[1724265058810,2.3912,2641.3,2640.9,7.573]
[1724265059107,2.3912,2641.3,2641.1,3.78619]
[1724265059448,2.3912,2641.3,2641.2,3.78615]
[1724265059888,2.36801341,2642.5,2641.4,3.78579]
[1724265059889,1.97334451,2642.5,2641.4,3.78579]
[1724265060076,2.4312,2642.8,2641.8,3.78516]
[1724265060279,2.4312,2642.8,2642.6,3.78409]
[1724265060474,2.4312,2642.8,2642.0,3.78496]
[1724265060721,2.4984,2642.5,2641.9,3.78515]
[1724265060861,2.4984,2642.5,2642.1,3.78486]
[1724265061065,2.4984,2642.5,2642.0,3.785]
[1724265061380,3.126653,2642.5,2642.0,3.785]
[1724265061583,3.126653,2642.5,2642.1,3.78481]
[1724265062734,3.126653,2642.5,2642.4,3.78443]
[1724265062735,2.4984,2642.5,2642.4,3.78443]
[1724265063292,3.0,2643.0,2642.7,3.78391]
[1724265063293,2.4307,2643.0,2642.7,3.78391]
[1724265064289,2.3449,2643.5,2643.0,3.78347]
[1724265064729,2.3449,2643.5,2642.9,3.78372]
[1724265064730,6.12779,2643.5,2642.9,3.78372]
[1724265064940,0.6193601,2643.4,2642.9,3.78372]
[1724265065637,0.6193601,2643.4,2642.6,3.78409]
[1724265065638,10.01277,2643.3,2642.6,3.78409]
[1724265065843,1.06321301,2643.2,2642.7,3.78399]
[1724265066141,1.06321301,2643.2,2642.5,3.78415]
[1724265066350,1.06321301,2643.2,2642.2,3.78459]
[1724265066351,3.78369,2643.0,2642.2,3.78459]
[1724265066636,6.07456,2643.1,2642.5,3.78415]
[1724265066637,2.291,2643.1,2642.5,3.78415]
[1724265066793,2.291,2643.1,2642.7,3.78393]
[1724265066997,2.8201,2643.1,2642.7,7.56784]
[1724265067201,2.8201,2643.1,2642.8,3.78375]
[1724265067423,2.291,2643.1,2642.9,3.78371]
[1724265067603,2.291,2643.1,2642.9,3.78364]
[1724265068345,7.43883967,2643.4,2643.1,3.78334]
[1724265068547,8.28277204,2643.8,2643.5,3.78283]
[1724265068859,9.68666021,2643.8,2643.5,3.78283]
[1724265069140,9.68666021,2643.8,2643.1,3.78335]
[1724265069445,3.7826,2643.7,2643.1,3.78333]
[1724265069754,2.354,2643.1,2642.5,3.78421]
[1724265069955,2.354,2643.1,2642.8,3.78379]
[1724265071392,2.354,2643.1,2642.1,3.78482]
[1724265071393,22.16473967,2643.6,2642.5,1.1568]
[1724265071748,22.16473967,2643.6,2643.3,3.78306]
[1724265071749,2.4659,2643.6,2643.3,3.78306]
[1724265072047,2.4659,2643.6,2643.1,3.78342]
[1724265072194,2.4659,2643.6,2642.9,3.78363]
[1724265072195,6.24872,2643.6,2642.9,3.78363]
[1724265072388,8.28277204,2643.8,2642.9,3.78363]
[1724265072389,8.28277204,2643.8,2643.7,7.56514]
[1724265072835,8.28277204,2643.8,2643.7,11.34771]
[1724265073623,8.28277204,2643.8,2643.7,7.56514]
[1724265073835,8.28277204,2643.8,2643.3,3.78313]
[1724265073836,9.11104924,2643.8,2643.3,3.783]
[1724265073994,8.28277204,2643.8,2643.3,3.783]
[1724265074364,8.28277204,2643.8,2643.1,3.78333]
[1724265074644,8.28277204,2643.8,2643.2,3.78321]
[1724265074807,1.4467382,2643.7,2643.2,7.56642]
[1724265075007,1.4467382,2643.7,2643.3,3.78306]
[1724265075198,1.4467382,2643.7,2643.2,3.78321]
[1724265075397,1.4467382,2643.7,2643.2,7.5664]
[1724265075633,1.4467382,2643.7,2643.3,3.78312]
[1724265075834,8.28277204,2643.8,2643.4,3.783]
[1724265076201,8.28277204,2643.8,2643.5,3.78277]
[1724265076398,8.28277204,2643.8,2643.6,3.78271]
[1724265076637,8.28277204,2643.8,2643.6,7.56534]
[1724265077117,8.28277204,2643.8,2643.7,3.78257]
[1724265077323,8.28277204,2643.8,2643.7,7.56514]
[1724265077707,8.28277204,2643.8,2643.7,3.78257]
[1724265078308,8.28277204,2643.8,2643.7,7.56514]
[1724265079609,8.28277204,2643.8,2643.7,3.78257]
[1724265080062,8.28277204,2643.8,2643.6,3.78269]
[1724265080361,2.3655,2643.7,2643.5,3.78276]
[1724265080862,8.28277204,2643.8,2643.5,3.78276]
[1724265081019,8.28277204,2643.8,2643.7,3.78257]
[1724265081460,8.28277204,2643.8,2643.7,7.56514]
[1724265088294,8.28277204,2643.8,2643.7,11.34771]
[1724265089943,8.28277204,2643.8,2643.7,17.42709376]
[1724265090473,8.28277204,2643.8,2643.7,7.56514]
[1724265090997,8.28277204,2643.8,2643.7,8.15515376]
[1724265091689,8.28277204,2643.8,2643.7,11.93772376]
[1724265091870,8.28277204,2643.8,2643.7,12.54947984]
[1724265092043,8.28277204,2643.8,2643.7,13.09947984]
[1724265092244,8.28277204,2643.8,2643.7,12.54947984]
[1724265092712,8.28277204,2643.8,2643.7,16.88204984]
[1724265093070,8.28277204,2643.8,2643.7,17.26134984]
[1724265093264,8.28277204,2643.8,2643.7,13.47877984]
[1724265093590,8.28277204,2643.8,2643.7,17.26134984]
[1724265093792,7.49373292,2643.8,2643.7,17.26134984]
[1724265094382,0.5015,2645.0,2644.8,3.78092]
[1724265094549,0.5015,2645.0,2644.8,7.56181]
[1724265094742,0.5015,2645.0,2644.8,3.78089]
[1724265095174,0.5015,2645.0,2644.7,3.78114]
[1724265095406,2.4899,2644.9,2644.6,3.78119]
[1724265095947,2.4899,2644.9,2644.7,3.78103]
[1724265096585,2.4899,2644.9,2644.6,3.78119]
[1724265097953,2.4899,2644.9,2644.7,3.78112]
[1724265099203,2.4899,2644.9,2644.8,3.781]
[1724265102499,0.5015,2645.0,2644.9,7.56172]
[1724265103880,0.5015,2645.0,2644.9,11.34258]
[1724265104101,0.5015,2645.0,2644.9,14.34258]
[1724265104535,0.5015,2645.0,2644.9,18.12344]
[1724265104830,0.5015,2645.0,2644.9,19.66449608]
[1724265104994,0.5015,2645.0,2644.9,15.88363608]
[1724265105199,0.5015,2645.0,2644.9,14.95433608]
[1724265105401,0.5015,2645.0,2644.9,15.50433608]
[1724265106199,0.5015,2645.0,2644.9,19.28519608]
[1724265106419,0.5015,2645.0,2644.9,20.82129608]
[1724265107207,0.5015,2645.0,2644.9,17.04043608]
[1724265107406,0.5015,2645.0,2644.9,8.17347608]
[1724265107645,0.5015,2645.0,2644.9,3.78086]
[1724265107940,0.5015,2645.0,2644.2,1.1568]
[1724265107941,0.5015,2645.0,2644.3,3.78166]
[1724265108289,0.5015,2645.0,2644.9,3.78086]
[1724265108691,0.5015,2645.0,2644.9,7.56172]
[1724265109092,0.5015,2645.0,2644.9,11.34258]
[1724265109397,0.5015,2645.0,2644.9,7.56172]
[1724265109600,0.5015,2645.0,2644.9,11.89258]
[1724265109913,0.5015,2645.0,2644.9,15.27188]
[1724265110795,0.5015,2645.0,2644.9,19.05274]
[1724265110995,0.5015,2645.0,2644.9,15.27188]
[1724265111232,0.5015,2645.0,2644.9,15.83270551]
[1724265112058,0.5015,2645.0,2644.9,15.27188]
[1724265112712,0.5015,2645.0,2644.9,14.89258]
[1724265113424,0.5015,2645.0,2644.9,15.27188]
[1724265113907,0.5015,2645.0,2644.9,14.34258]
[1724265114903,0.5015,2645.0,2644.9,14.72188]
[1724265115566,0.5015,2645.0,2644.9,15.27188]
[1724265116211,0.5015,2645.0,2644.9,14.89258]
[1724265117002,0.5015,2645.0,2644.9,14.34258]
[1724265118157,0.5015,2645.0,2644.9,14.89258]
[1724265118707,0.5015,2645.0,2644.9,15.27188]
[1724265120674,0.5015,2645.0,2644.9,14.72188]
[1724265121075,0.5015,2645.0,2644.9,14.34258]
[1724265121520,0.5015,2645.0,2644.9,14.89258]
[1724265122036,0.5015,2645.0,2644.9,19.61356551]
[1724265122366,0.5015,2645.0,2644.9,15.45340551]
[1724265122774,0.5015,2645.0,2644.9,3.78086]
[1724265123079,2.3129,2644.9,2644.7,3.78114]
[1724265123375,2.3129,2644.9,2644.2,3.78186]
[1724265123376,2.3129,2644.9,2644.8,7.562]
[1724265123614,0.5015,2645.0,2644.9,7.56172]
[1724265124162,0.5015,2645.0,2644.9,11.34258]
[1724265125513,0.5015,2645.0,2644.9,7.56172]
[1724265125886,0.5015,2645.0,2644.9,11.34258]
[1724265126044,0.1265873,2645.8,2645.7,7.55942]
[1724265126246,0.1265873,2645.8,2645.7,12.49593]
[1724265126247,7.3e-06,2645.8,2645.7,12.49593]
[1724265126547,5.6e-06,2646.0,2645.9,11.33829]
[1724265126706,5.6e-06,2646.0,2645.9,14.88829]
[1724265126907,5.6e-06,2646.0,2645.9,10.55886]
[1724265127164,5.6e-06,2646.0,2645.9,7.55886]
[1724265127441,5.6e-06,2646.0,2645.9,8.10886]
[1724265127655,5.6e-06,2646.0,2645.9,11.88829]
[1724265127955,5.6e-06,2646.0,2645.9,8.10886]
[1724265128189,2.4854056,2646.0,2645.9,3.77943]
[1724265128439,2.4854056,2646.0,2645.8,3.77956]
[1724265128661,2.73394616,2646.0,2645.5,3.77998]
[1724265128945,2.73394616,2646.0,2645.6,3.77984]
[1724265129145,2.73394616,2646.0,2645.7,3.77967]
[1724265129325,2.4854056,2646.0,2645.8,3.77945]
[1724265129530,2.4854056,2646.0,2645.9,3.77943]
[1724265129850,5.6e-06,2646.0,2645.9,7.55886]
[1724265130311,5.6e-06,2646.0,2645.9,8.10886]
[1724265130500,5.6e-06,2646.0,2645.9,7.55886]
[1724265131549,5.6e-06,2646.0,2645.9,11.33829]
[1724265131710,5.6e-06,2646.0,2645.9,11.88829]
[1724265132100,5.6e-06,2646.0,2645.9,14.88829]
[1724265132815,5.6e-06,2646.0,2645.9,15.26759]
[1724265133795,5.6e-06,2646.0,2645.9,19.04702]
[1724265134341,5.6e-06,2646.0,2645.9,19.56117493]
[1724265134508,0.39297415,2646.3,2646.2,12.037]
[1724265134709,0.39297415,2646.3,2646.2,12.587]
[1724265134940,0.39297415,2646.3,2646.2,11.887]
[1724265135553,0.39297415,2646.3,2646.2,7.558]
[1724265135554,2.83177415,2646.3,2646.2,7.558]
[1724265135850,0.39297415,2646.3,2646.2,7.558]
[1724265136645,2.72117415,2646.3,2646.2,7.558]
[1724265138022,0.39297415,2646.3,2646.2,11.337]
[1724265138203,0.39297415,2646.3,2646.2,7.558]
[1724265138423,0.39297415,2646.3,2646.2,11.337]
[1724265138870,0.39297415,2646.3,2646.2,8.108]
[1724265139228,0.39297415,2646.3,2646.2,7.558]
[1724265141241,0.39297415,2646.3,2646.2,11.337]
[1724265141447,0.39297415,2646.3,2646.2,11.887]
[1724265142215,0.39297415,2646.3,2646.2,15.666]
[1724265142361,4.15e-06,2646.3,2646.2,19.366]
[1724265142678,4.15e-06,2646.3,2646.2,23.5243]
[1724265142857,4.15e-06,2646.3,2646.2,19.7453]
[1724265143183,0.60479,2646.6,2646.5,15.11428]
[1724265143478,0.60479,2646.6,2646.5,18.66428]
[1724265144858,0.60479,2646.6,2646.5,24.75238]
[1724265147145,0.60479,2646.6,2646.5,23.59558]
[1724265148098,0.60479,2646.6,2646.5,11.71501]
[1724265148282,3.332139,2646.6,2646.3,3.77873]
[1724265148474,2.4345,2646.5,2646.3,3.77873]
[1724265149786,2.4345,2646.5,2646.4,3.77871]
[1724265150409,2.4345,2646.5,2646.3,3.77873]
[1724265150924,2.4345,2646.5,2646.3,7.55751]
[1724265151131,2.738429,2646.5,2646.1,3.77906]
[1724265151328,2.738429,2646.5,2645.6,3.77977]
[1724265151525,2.738429,2646.5,2646.4,3.77871]
[1724265151526,2.4345,2646.5,2646.4,3.77871]
[1724265151741,2.4345,2646.5,2646.3,3.77876]
[1724265151896,0.60479,2646.6,2646.5,11.33571]
[1724265152313,0.60479,2646.6,2646.5,15.11428]
[1724265152718,0.60479,2646.6,2646.5,14.88571]
[1724265153423,0.60479,2646.6,2646.5,18.66428]
[1724265153792,0.60479,2646.6,2646.5,14.88571]
[1724265154148,0.60479,2646.6,2646.5,18.66428]
[1724265154649,0.60479,2646.6,2646.5,14.33571]
[1724265154845,2.95769,2646.6,2646.5,14.33571]
[1724265155838,0.60479,2646.6,2646.5,18.11428]
[1724265156054,0.60479,2646.6,2646.5,18.66428]
[1724265156241,0.60479,2646.6,2646.5,14.88571]
[1724265156839,2.95719,2646.6,2646.5,10.55714]
[1724265157038,2.95719,2646.6,2646.5,7.55714]
[1724265157195,2.3124,2646.5,2646.3,3.77877]
[1724265157394,2.3124,2646.5,2646.4,3.77871]
[1724265157732,2.3124,2646.5,2646.3,3.77877]
[1724265157941,2.3124,2646.5,2646.1,3.77902]
[1724265158087,2.6336909,2646.5,2646.1,3.77902]
[1724265158610,2.6336909,2646.5,2646.3,3.77879]
[1724265159034,2.6336909,2646.5,2645.9,3.77939]
[1724265159297,2.6336909,2646.5,2645.7,7.55926]
[1724265159298,2.3146,2646.3,2645.7,7.55926]
[1724265159494,2.3146,2646.3,2645.8,3.77943]
[1724265160051,2.3146,2646.3,2645.9,3.77934]
[1724265160342,2.3146,2646.3,2645.7,7.55921]
[1724265160525,2.3545,2646.1,2645.7,3.7796]
[1724265160726,2.3545,2646.1,2645.8,3.77947]
[1724265161120,2.3545,2646.1,2645.9,3.7794]
[1724265162346,2.3545,2646.1,2645.7,7.55921]
[1724265163236,2.3545,2646.1,2645.9,3.77938]
[1724265163724,3.78086,2644.9,2644.3,0.78288949]
[1724265163898,2.4935,2646.0,2643.8,3.78243]
[1724265163899,2.4935,2644.8,2643.8,3.78243]
[1724265164093,2.4935,2644.8,2644.2,3.78174]
[1724265164417,2.4935,2644.8,2644.2,3.78176]
[1724265164823,2.4935,2644.8,2644.3,3.78169]
[1724265165436,2.4935,2644.8,2644.1,3.78197]
[1724265165437,2.4935,2644.8,2644.5,3.78131]
[1724265165942,2.4935,2644.8,2644.3,3.78168]
[1724265166087,2.4935,2644.8,2644.4,3.78148]
[1724265166945,2.4935,2644.8,2644.3,3.78168]
[1724265166946,2.74285,2644.8,2644.1,3.78199]
[1724265167149,2.3949,2644.7,2644.1,3.78199]
[1724265167492,3.78161,2644.4,2643.7,3.78253]
[1724265167716,2.3972,2644.3,2643.7,3.78246]
[1724265167924,2.3972,2644.3,2644.2,3.78186]
[1724265168949,2.3972,2644.3,2644.2,7.56372]
[1724265169154,2.3108,2644.7,2644.6,3.78117]
[1724265169296,2.3108,2644.7,2644.6,7.56246]
[1724265169777,2.3108,2645.1,2645.0,7.5614]
[1724265169920,2.3108,2645.8,2645.4,3.78008]
[1724265170128,2.3108,2645.8,2644.9,3.3793]
[1724265170410,2.3108,2645.8,2645.3,3.78018]
[1724265170411,2.56923537,2645.8,2645.3,3.78018]
[1724265170590,2.3108,2645.8,2644.9,3.0]
[1724265170798,2.3593,2646.1,2645.8,3.77955]
[1724265171028,2.3593,2646.1,2646.0,3.77928]
[1724265171245,2.3593,2646.1,2646.0,7.55856]
[1724265171392,2.3593,2646.1,2645.3,5.139]
[1724265171393,2.3593,2646.5,2646.2,3.77889]
[1724265171600,2.3593,2646.5,2646.4,3.77871]
[1724265171796,3.293332,2646.9,2646.4,3.77871]
[1724265172040,3.293332,2646.9,2646.5,3.77857]
[1724265172244,3.293332,2646.9,2646.5,7.55714]
[1724265172846,0.934032,2646.9,2646.5,7.55714]
[1724265173244,0.934032,2646.9,2646.5,11.33571]
[1724265173496,0.934032,2646.9,2646.5,14.88571]
[1724265173707,0.934032,2646.9,2646.5,10.55714]
[1724265176171,0.934032,2646.9,2646.5,7.55714]
[1724265178591,0.934032,2646.9,2646.8,11.33442]
[1724265178766,0.934032,2646.9,2646.8,15.11256]
[1724265178971,0.934032,2646.9,2646.8,11.33442]
[1724265179274,0.934032,2646.9,2646.8,14.33442]
[1724265179868,0.934032,2646.9,2646.8,10.55628]
[1724265180419,0.934032,2646.9,2646.8,7.55628]
[1724265181602,0.934032,2646.9,2646.8,3.77814]
[1724265181937,0.934032,2646.9,2646.6,3.77837]
[1724265182272,0.934032,2646.9,2646.6,3.77834]
[1724265182506,0.934032,2646.9,2646.5,3.0]
[1724265182507,0.934032,2646.9,2646.8,3.77814]
[1724265182904,0.934032,2646.9,2646.7,3.77828]
[1724265183067,0.934032,2646.9,2646.5,6.77846]
[1724265183273,0.934032,2646.9,2646.8,7.55628]
[1724265183702,0.934032,2646.9,2646.8,11.33442]
[1724265184020,0.934032,2646.9,2646.8,10.55628]
[1724265184519,0.934032,2646.9,2646.8,14.33442]
[1724265184687,0.934032,2646.9,2646.8,11.10628]
[1724265184887,0.934032,2646.9,2646.8,10.55628]
[1724265186713,0.934032,2646.9,2646.8,14.33442]
[1724265186927,1.02842171,2647.2,2647.1,15.11084]
[1724265187191,1.02842171,2647.2,2647.1,19.65564894]
[1724265188416,1.02842171,2647.2,2647.1,19.04014]
[1724265188624,0.97842171,2647.2,2647.1,19.04014]
[1724265189619,0.97842171,2647.2,2647.1,14.71243]
[1724265190131,0.97842171,2647.2,2647.1,15.26243]
[1724265190297,0.97842171,2647.2,2647.1,19.04014]
[1724265190473,0.97842171,2647.2,2647.1,19.65564894]
[1724265191274,0.19043013,2647.2,2647.1,19.65564894]
[1724265194211,0.19043013,2647.2,2647.1,23.43335894]
[1724265194417,0.19043013,2647.2,2647.1,19.65564894]
[1724265194634,0.01338312,2647.2,2647.1,19.65564894]
[1724265195155,1.45205341,2647.8,2647.7,0.3793]
[1724265195156,4.18e-06,2647.8,2647.7,0.3793]
[1724265195431,4.18e-06,2647.8,2647.7,26.14311369]
[1724265195601,4.18e-06,2647.8,2647.7,29.14311369]
[1724265195784,4.18e-06,2647.8,2647.7,31.57051369]
[1724265196440,4.18e-06,2647.8,2647.7,28.57051369]
[1724265196584,4.18e-06,2647.8,2647.7,27.9526]
[1724265197321,4.18e-06,2647.8,2647.7,23.62574]
[1724265197499,4.18e-06,2647.8,2647.7,27.9526]
[1724265198542,4.18e-06,2647.8,2647.7,19.84888]
[1724265199017,4.18e-06,2647.8,2647.7,14.33058]
[1724265199932,4.18e-06,2647.8,2647.7,11.33058]
[1724265200143,4.18e-06,2647.8,2647.7,14.33058]
[1724265200834,4.18e-06,2647.8,2647.7,18.10744]
[1724265201330,4.18e-06,2647.8,2647.7,18.48594]
[1724265201699,4.18e-06,2647.8,2647.7,19.07672661]
[1724265201910,4.18e-06,2647.8,2647.7,28.54258171]
[1724265202356,4.18e-06,2647.8,2647.7,24.76572171]
[1724265202943,4.18e-06,2647.8,2647.7,15.29986171]
[1724265203094,4.18e-06,2647.8,2647.7,18.48594]
[1724265203289,4.18e-06,2647.8,2647.7,19.07673808]
[1724265203818,4.18e-06,2647.8,2647.7,19.07674978]
[1724265204506,4.18e-06,2647.8,2647.7,18.48594]
[1724265204892,4.18e-06,2647.8,2647.7,14.70908]
[1724265205591,0.10000418,2647.8,2647.7,14.70908]
[1724265206495,0.10000418,2647.8,2647.7,20.4389068]
[1724265206690,0.10000418,2647.8,2647.7,24.2157668]
[1724265206946,4.18e-06,2647.8,2647.7,24.7657668]
[1724265207450,4.18e-06,2647.8,2647.7,24.2157668]
[1724265207822,4.18e-06,2647.8,2647.7,20.4389068]
[1724265208810,4.18e-06,2647.8,2647.7,24.2157668]
[1724265209024,4.18e-06,2647.8,2647.7,20.4389068]
[1724265209435,4.18e-06,2647.8,2647.7,24.2157668]
[1724265213118,4.18e-06,2647.8,2647.7,24.2157668]
[1724265214261,4.18e-06,2647.8,2647.7,23.62494]
[1724265214461,4.18e-06,2647.8,2647.7,24.21570541]
[1724265215778,0.00250457,2648.0,2647.9,11.32971]
[1724265215919,0.00250457,2648.0,2647.9,14.92047541]
[1724265216116,0.00250457,2648.0,2647.9,18.69704541]
[1724265217483,0.00250457,2648.0,2647.9,18.10628]
[1724265217850,2.42e-06,2648.5,2648.4,19.2578]
[1724265217984,2.42e-06,2648.5,2648.4,28.53751801]
[1724265218926,2.42e-06,2648.5,2648.4,24.21165801]
[1724265220252,2.42e-06,2648.5,2648.4,20.43579801]
[1724265220390,2.42e-06,2648.5,2648.4,19.84508]
[1724265220591,2.42e-06,2648.5,2648.4,23.62094]
[1724265220902,2.42e-06,2648.5,2648.4,24.21158093]
[1724265222504,2.42e-06,2648.5,2648.4,22.91858093]
[1724265222925,2.42e-06,2648.5,2648.4,19.14272093]
[1724265223095,2.44390242,2648.5,2648.4,19.14272093]
[1724265223489,2.44390242,2648.5,2648.4,12.36686093]
[1724265224046,2.44390242,2648.5,2648.4,8.52086093]
[1724265224205,2.68829266,2648.5,2648.4,8.14236093]
[1724265224407,2.68829266,2648.5,2647.4,3.77723]
[1724265224622,2.68829266,2648.5,2648.4,3.77586]
[1724265225142,2.68829266,2648.5,2648.4,7.55172]
[1724265225925,2.68829266,2648.5,2648.4,3.77586]
[1724265226993,2.68829266,2648.5,2648.3,3.776]
[1724265227193,2.68829266,2648.5,2648.3,3.7759]
[1724265227446,2.68829266,2648.5,2648.3,7.55183]
[1724265227790,2.44390242,2648.5,2648.4,7.55172]
[1724265228540,2.44390242,2648.5,2648.2,3.77601]
[1724265228705,2.44390242,2648.5,2648.3,3.776]
[1724265229125,2.44390242,2648.5,2648.4,3.77586]
[1724265230537,2.44390242,2648.5,2648.3,3.77589]
[1724265230739,2.68829266,2648.5,2648.3,3.77589]
[1724265231240,2.68829266,2648.5,2648.1,3.77621]
[1724265231800,2.68829266,2648.5,2648.1,7.55242]
[1724265232231,2.68829266,2648.5,2648.3,3.77593]
[1724265232416,2.44390242,2648.5,2648.4,3.77586]
[1724265233679,2.44390242,2648.5,2648.2,3.77614]
[1724265233977,2.44390242,2648.5,2648.2,7.55221]
[1724265234147,2.44390242,2648.5,2648.2,3.77607]
[1724265234537,2.44390242,2648.5,2648.4,3.77586]
[1724265235989,2.44390242,2648.5,2648.4,7.55172]
[1724265236295,2.44390242,2648.5,2648.4,3.77586]
[1724265236491,2.68829266,2648.5,2648.4,3.77586]
[1724265237133,2.44390242,2648.5,2648.4,3.77586]
[1724265237946,2.44390242,2648.5,2648.3,3.77587]
[1724265238273,2.44390242,2648.5,2648.4,3.77586]
[1724265238638,2.44390242,2648.5,2648.2,3.77602]